Cogmind - Beta 13 @@@ ROGUE MODE // 2024.05.19 @ 15:07:42 Player: Tyrockal Result: Destroyed by Y-45 Defender with Beam Rifle Performance ------------- Evolutions (1) 500 Regions Visited (4) 800 Robots Destroyed (21) 105 Value Destroyed (654) 654 Prototype IDs (1) 20 Alien Tech Used (0) 0 Bonus (16) 16 TOTAL SCORE: 2095 Bonus ------- High Alert Combat Kills 16 Cogmind --------- Core Integrity 0/400 Matter 265/300 Energy 109/125 System Corruption 2% Temperature Cool (9) Movement Walking (120) Location -9/Storage Parts ------- > --- POWER (1) -------- Light Ion Engine > --- PROPULSION (4) --- Aluminum Leg Aluminum Leg > --- UTILITY (2) ------ Small Storage Unit > --- WEAPON (2) ------- EM Pulse Gun > --- INVENTORY (8) ---- Ion Engine Light Ion Engine Improved Ion Engine Light Treads Light Treads Small Storage Unit Seismic Detector Peak State ------------ > --- POWER ------------ Light Ion Engine > --- PROPULSION ------- Aluminum Leg Aluminum Leg Aluminum Leg Aluminum Leg > --- UTILITY ---------- Improved Heat Sink Small Storage Unit > --- WEAPON ----------- Heavy EM Pulse Gun Improved Light Cannon > --- INVENTORY -------- Improved Ion Engine Light Treads Light Treads Small Storage Unit Seismic Detector Rocket Launcher [Rating: 13] Favorites ----------- Power Ion Engine Engine Ion Engine Propulsion Aluminum Leg Treads Light Treads Leg Aluminum Leg Flight Unit Improved Flight Unit Utility Small Storage Unit Device Improved Heat Sink Storage Small Storage Unit Processor Terrain Scan Processor Weapon Light Cannon Energy Gun Heavy EM Pulse Gun Ballistic Gun Light Assault Rifle Ballistic Cannon Light Cannon Launcher Rocket Launcher Build | -11 -10 -10 -9 -9 ------- Run | Yrd Mat Min Mat Sto Slots Evolved 2 | . . . 2 . Power . | . . . . . Propulsion 2 | . . . 2 . Utility . | . . . . . Weapon . | . . . . . Parts Attached 39 | 5 5 7 8 14 Power 7 | 1 . 1 2 3 Engine 7 | 1 . 1 2 3 Core . | . . . . . Reactor . | . . . . . Propulsion 13 | 2 1 2 4 4 Treads 3 | . . 2 1 . Leg 9 | 2 1 . 2 4 Wheel . | . . . . . Hover . | . . . . . Flight 1 | . . . 1 . Utility 5 | 1 1 2 1 . Device 2 | . 1 . 1 . Storage 2 | 1 . 1 . . Processor 1 | . . 1 . . Hackware . | . . . . . Protection . | . . . . . Artifact . | . . . . . Weapon 14 | 1 3 2 1 7 Energy Gun 3 | 1 . . . 2 Energy Cannon . | . . . . . Ballistic Gun 2 | . . . 1 1 Ballistic Cannon 6 | . 2 2 . 2 Launcher 3 | . 1 . . 2 Special Weapon . | . . . . . Impact Weapon . | . . . . . Slashing Weapon . | . . . . . Piercing Weapon . | . . . . . Special Melee Weapon . | . . . . . Unidentified Prototypes 1 | . . . 1 . Parts Lost 22 | . . 5 7 10 Power 2 | . . . 1 1 Propulsion 9 | . . 2 3 4 Utility 2 | . . 1 . 1 Weapon 9 | . . 2 3 4 Highest Loss Streak 6 | . . 5 5 6 To Critical Strikes 1 | . . . . 1 Average Slot Usage (%) 86 | . 91 97 77 80 Engine 12 | . 14 14 10 10 Treads 6 | . . 7 15 . Leg 21 | . 28 20 6 32 Flight 1 | . . . 5 . Device 7 | . 7 10 2 9 Storage 12 | . 14 14 11 11 Processor 2 | . . 2 8 . Energy Gun 2 | . 3 . . 5 Ballistic Gun 1 | . . . 5 2 Ballistic Cannon 16 | . 21 27 11 7 Naked Turns . | . . . . . Heaviest Build 18 | 11 17 17 14 18 Greatest Support 40 | 20 20 40 40 40 Greatest Overweight (x) 2 | . . . 2 . Average Overweight (x) . | . . . . . Largest Inventory Capacity 8 | 8 8 8 8 8 Average Capacity 7 | 7 8 8 8 8 Most Carried 8 | 5 8 8 6 7 Average Carried 6 | 2 7 6 4 6 Final Capacity 8 | 8 8 8 8 8 Final Carried 8 | 5 8 5 6 7 Class Distribution -------------------- 67% | Mutant 32% | Scavenger-Mutant Dominant Class ---------------- Mutant | -10/Materials Mutant | -10/Mines Mutant | -9/Materials Scavenger-Mutant | -9/Storage Resources | -11 -10 -10 -9 -9 ----------- Run | Yrd Mat Min Mat Sto Matter Collected 954 | 201 85 317 130 221 Remotely . | . . . . . Salvage Created 590 | . 76 39 174 301 Parts 36 | . 5 . 8 23 Haulers Intercepted . | . . . . . Recyclers Shooed . | . . . . . Parts Field Recycled . | . . . . . Retrieved Matter . | . . . . . Parts Self-Destructed . | . . . . . Prevented . | . . . . . Kills | -11 -10 -10 -9 -9 ------- Run | Yrd Mat Min Mat Sto Combat Hostiles Destroyed 25 | . 2 8 4 11 Guns 7 | . . . 3 4 Cannons 14 | . 2 8 1 3 AOE 3 | . . . . 3 Classes Destroyed 8 | . 1 2 1 4 Worker 1 | . . . . 1 Builder 1 | . . . . 1 Mechanic 1 | . . . . 1 Swarmer 4 | . . . . 4 Grunt 9 | . 2 . 2 5 Sentry 4 | . . . 2 2 Demolisher 1 | . . 1 . . Assembled 7 | . . 7 . . Best Kill Streak 10 | . 2 3 2 10 Combat Bots Only 7 | . 2 3 2 7 Max Kills in Single Turn 2 | . 1 1 1 2 Gunslinging . | . . . . . Exploded 1 | . . . . 1 Melee . | . . . . . Uniques/NPCs Destroyed . | . . . . . Combat | -11 -10 -10 -9 -9 -------- Run | Yrd Mat Min Mat Sto Hostile Shots Fired 241 | . 11 33 96 101 Missed 68 | . 3 7 22 36 Damage Taken 2813 | . 89 789 1098 837 Core 516 | . 23 85 252 156 Absorbed by Shields . | . . . . . Core Remaining (%) 78 | 100 . 56 . . Volleys Fired 103 | . 6 30 29 38 Largest 2 | . 2 2 2 2 Hottest 84 | . 70 70 70 84 Shots Fired 168 | . 12 55 39 62 Gun 59 | . . . 26 33 Cannon 105 | . 12 55 13 25 Launcher 4 | . . . . 4 Special . | . . . . . Kinetic 144 | . 12 55 39 38 Thermal . | . . . . . Explosive 4 | . . . . 4 Electromagnetic 20 | . . . . 20 Robot Hit Streak 14 | . 5 6 14 9 Robot Miss Streak 4 | . 3 4 3 3 Penetration Max . | . . . . . Secondary Targets . | . . . . . Shots Hit Robots 105 | . 6 28 29 42 Core Hits 52 | . 3 11 12 26 Critical Kills . | . . . . . Critical Parts Destroyed . | . . . . . Critical Strikes 2 | . . . 2 . Blast 2 | . . . 2 . Melee Attacks . | . . . . . Impact . | . . . . . Slashing . | . . . . . Piercing . | . . . . . Sneak Attacks . | . . . . . Combat Hostiles . | . . . . . Follow-up Attacks . | . . . . . Damage Inflicted 2106 | . 109 486 321 1190 Guns 434 | . . . 141 293 Cannons 1149 | . 109 486 180 374 Explosions 523 | . . . . 523 Melee . | . . . . . Ramming . | . . . . . Kinetic 1352 | . 109 486 321 436 Thermal 75 | . . . . 75 Explosive 448 | . . . . 448 Electromagnetic 231 | . . . . 231 Impact . | . . . . . Slashing . | . . . . . Piercing . | . . . . . Highest Corruption 2 | . . . 1 2 Average Corruption 1 | . . . 1 1 Corruption Purged . | . . . . . Corruption Blocked . | . . . . . Effects 5 | . . . 1 4 Message Errors 2 | . . . 1 1 Matter Fused 1 | . . . . 1 Data Loss (minor) 2 | . . . . 2 Overload Shots . | . . . . . Overflow Damage 68 | . 5 34 . 29 Projectiles 45 | . 5 34 . 6 Explosions 23 | . . . . 23 Melee . | . . . . . Knockbacks 20 | . 2 13 1 4 Impact . | . . . . . Kinetic 18 | . 1 12 1 4 Secondary 2 | . 1 1 . . Self-Inflicted Damage 25 | . . . . 25 Shots 1 | . . . . 1 Rammed . | . . . . . Targets Rammed . | . . . . . Kicked . | . . . . . Crushed . | . . . . . Highest Temperature 93 | . 93 54 87 9 Average Temperature 28 | . 50 23 23 6 Received Heat Transfer 864 | . 48 . 501 315 Siege Activations . | . . . . . Robots Corrupted 1 | . . . . 1 Combat Hostiles 1 | . . . . 1 Parts Fried . | . . . . . Impact Corruptions . | . . . . . Robots Melted . | . . . . . Combat Hostiles . | . . . . . Parts Melted . | . . . . . Heat Transferred 150 | . . . . 150 Parts Sabotaged . | . . . . . Parts Stolen . | . . . . . Parts Stripped . | . . . . . Power Chain Reactions 1 | . . . . 1 Alert | -11 -10 -10 -9 -9 ------- Run | Yrd Mat Min Mat Sto Peak Influence 414 | . 62 59 75 414 Initial 27 | . . 24 3 27 Average 68 | . 35 26 27 170 Maximum Alert Level 2 | . . . . 2 Low Security (%) 90 | 100 100 100 100 67 Level 1 5 | . . . . 19 Level 2 3 | . . . . 13 Level 3 . | . . . . . Level 4 . | . . . . . Level 5 . | . . . . . High Security . | . . . . . Max Security . | . . . . . Squads Dispatched 3 | . 1 . . 2 Investigation . | . . . . . Extermination . | . . . . . Reinforcement 3 | . 1 . . 2 Assault . | . . . . . Garrison . | . . . . . Intercept . | . . . . . Searches Triggered . | . . . . . Construction Impeded 1 | . . . . 1 Haulers Reinforced . | . . . . . Active Scanning Responses . | . . . . . Cargo Convoy Interrupts . | . . . . . Stealth | -11 -10 -10 -9 -9 --------- Run | Yrd Mat Min Mat Sto Distress Signals 2 | . . 1 1 . Communications Jammed . | . . . . . Distress Signals . | . . . . . Times Spotted 44 | . 5 11 10 18 Peak Tracking Total 7 | . 4 3 4 7 Tactical Retreats 4 | . . 2 . 2 Traps | -11 -10 -10 -9 -9 ------- Run | Yrd Mat Min Mat Sto Traps Triggered 2 | . . . 1 1 Indirectly . | . . . . . Trap Hack Attempts . | . . . . . Triggered . | . . . . . Disarmed . | . . . . . Reprogrammed . | . . . . . Reused . | . . . . . Traps Extracted . | . . . . . Installed . | . . . . . Triggered . | . . . . . Machines | -11 -10 -10 -9 -9 ---------- Run | Yrd Mat Min Mat Sto Machines Disabled 3 | . . . . 3 Max in Single Turn 1 | . . . . 1 Machines Repaired . | . . . . . Machines Dismantled . | . . . . . Machines Sabotaged . | . . . . . Overloaded Fab Kills . | . . . . . Hacking | -11 -10 -10 -9 -9 --------- Run | Yrd Mat Min Mat Sto Machines Accessed 5 | . 2 . 2 1 Terminals 4 | . 2 . 2 . Fabricators . | . . . . . Repair Stations . | . . . . . Recycling Units 1 | . . . . 1 Scanalyzers . | . . . . . Garrison Access . | . . . . . Total Hacks 9 | . 5 . 3 1 Successful 4 | . 2 . 1 1 Failed 5 | . 3 . 2 . Catastrophic . | . . . . . Database Lockouts . | . . . . . Manual . | . . . . . Terminals 8 | . 5 . 3 . Fabricators . | . . . . . Repair Stations . | . . . . . Recycling Units 1 | . . . . 1 Scanalyzers . | . . . . . Garrison Access . | . . . . . Terminal Hacks 3 | . 2 . 1 . Dispatch Records 1 | . . . 1 . Surveillance Status 1 | . 1 . . . Zone Layout 1 | . 1 . . . Fabricator Hacks . | . . . . . Repair Station Hacks . | . . . . . Recycling Unit Hacks 1 | . . . . 1 Retrieve Components 1 | . . . . 1 Scanalyzer . | . . . . . Garrison Access Hacks . | . . . . . Unauthorized Hacks . | . . . . . Terminals . | . . . . . Fabricators . | . . . . . Repair Stations . | . . . . . Recycling Units . | . . . . . Scanalyzers . | . . . . . Garrison Access . | . . . . . Data Cores Recovered . | . . . . . Used . | . . . . . Hacking Detections 3 | . 2 . 1 . Full Trace Events . | . . . . . Feedback Events . | . . . . . Feedback Blocked . | . . . . . Robot Schematics Acquired . | . . . . . Robots Built . | . . . . . Authchips . | . . . . . Time . | . . . . . Total Robot Build Rating . | . . . . . Part Schematics Acquired . | . . . . . Parts Built . | . . . . . Authchips . | . . . . . Time . | . . . . . Total Part Build Rating . | . . . . . Parts Repaired . | . . . . . Time . | . . . . . Parts Recycled . | . . . . . Recycled Matter . | . . . . . Retrieved Matter . | . . . . . Retrieved Components 2 | . . . . 2 Parts Scanalyzed . | . . . . . Part Schematics Acquired . | . . . . . Parts Damaged . | . . . . . Bothacking | -11 -10 -10 -9 -9 ------------ Run | Yrd Mat Min Mat Sto Used RIF Installer . | . . . . . Robots Hacked . | . . . . . Non-combat . | . . . . . Combat . | . . . . . Robot Hacks Applied . | . . . . . Relay Couplers Released . | . . . . . Fabnet Peak Effective % . | . . . . . Robots Rewired . | . . . . . Allies Hacked . | . . . . . Hacks Repelled . | . . . . . Allies | -11 -10 -10 -9 -9 -------- Run | Yrd Mat Min Mat Sto Total Allies . | . . . . . Largest Group . | . . . . . Highest-Rated Group . | . . . . . Highest-Rated Ally . | . . . . . Total Orders . | . . . . . Ally Attacks . | . . . . . Total Damage . | . . . . . Kills . | . . . . . Allies Corrupted . | . . . . . Allies Melted . | . . . . . Intel | -11 -10 -10 -9 -9 ------- Run | Yrd Mat Min Mat Sto Robot Analysis Total . | . . . . . Derelict Logs Recovered 1 | . . 1 . . Drone Launches . | . . . . . Drone Recoveries . | . . . . . Exploration | -11 -10 -10 -9 -9 ------------- Run | Yrd Mat Min Mat Sto Turns Passed 1425 | 61 231 368 350 415 Spaces Moved 807 | 42 168 168 188 241 Core 6 | 2 . . 4 . Treads 149 | . . 34 115 . Legs 652 | 40 168 134 69 241 Wheels . | . . . . . Hover . | . . . . . Flight . | . . . . . Fastest Speed 50 | 50 120 120 100 120 Average Speed 127 | 116 120 128 145 120 Slowest Speed 190 | 120 120 160 190 120 Overloaded Moves . | . . . . . Propulsion Burnouts . | . . . . . Robots Hopped . | . . . . . Cave-ins Triggered . | . . . . . Exploration Rate (%) 26 | 3 34 34 19 44 Regions Visited 4 Branch Regions 2 Pre-discovered Areas 1 | . . 1 . . Known Exits Taken . | . . . . . Unknown Exits Taken 4 | 1 1 1 1 . Scrap Searched . | . . . . . Spaces Dug . | . . . . . Terrain Destroyed 45 | . . . . 45 Melee . | . . . . . Projectile 1 | . . . . 1 AOE 44 | . . . . 44 Terrain Rammed . | . . . . . Walls Destroyed . | . . . . . Machines Disabled . | . . . . . Actions | -11 -10 -10 -9 -9 --------- Run | Yrd Mat Min Mat Sto Total 1032 | 51 184 265 228 304 Wait 68 | . . 60 . 8 Move 803 | 41 167 167 187 241 Hop . | . . . . . Pick Up 13 | 5 4 . 3 1 Fast Attach 22 | 5 2 1 5 9 Attach 7 | . . 4 1 2 Detach 1 | . . . . 1 Swap 10 | . 3 2 2 3 Drop 5 | . 2 1 1 1 Fire 103 | . 6 30 29 38 Melee . | . . . . . Ram . | . . . . . Kick . | . . . . . Crush . | . . . . . Escape Stasis . | . . . . . Rewire . | . . . . . Trap . | . . . . . Miscellaneous . | . . . . . Route ------- -11/Scrapyard -10/Materials (discovered 2 exits: *Mat / [*Min]) -10/Mines (discovered 2 exits: *Mat x2) -9/Materials (discovered 2 exits: Mat / *Sto) -9/Storage History --------- Turn | Location | Event 18 | -11/Scrapyard | Discovered new exit (range 16) 62 | -11/Scrapyard | Entered Materials 165 | -10/Materials | Discovered new exit (range 4) 277 | -10/Materials | Discovered new exit (range 9) 293 | -10/Materials | Entered Mines 303 | -10/Mines | Discovered new exit (range 5) 304 | -10/Mines | Learned location of Storage (-9) 305 | -10/Mines | Build established: Mutant 370 | -10/Mines | Assembled infested the area 477 | -10/Mines | Learned location of 1 exit from Materials 547 | -10/Mines | Discovered new exit (range 10) 594 | -10/Mines | Lost 5 parts (2n1u2w) 661 | -10/Mines | Entered Materials 661 | -9/Materials | Evolved 2 slots: Propulsion x2 662 | -9/Materials | Identified exit to Materials 901 | -9/Materials | Lost 5 parts (1p2n2w) 976 | -9/Materials | Core integrity fell below 50% 1001 | -9/Materials | Discovered new exit (range 9) 1011 | -9/Materials | Entered Storage 1317 | -9/Storage | Destroyed 7 combat bots 1332 | -9/Storage | Lost 3 parts (1n2w) 1370 | -9/Storage | Core integrity fell below 20% 1426 | -9/Storage | Destroyed by Y-45 Defender with Beam Rifle Last Messages --------------- 01380_ G-34 Mercenary destroyed. 01381_ Imp. Heat Sink destroyed. 01383_ R-06 Scavenger collects Com. Wheel. 01384_ Acquired 54 matter. 01384_ K-01 Serf collects debris. 01386_ Acquired Lgt. Ion Engine. 01392_ K-01 Serf cleans the Transfer Shaft. 01393_ Acquired 24 matter. 01395_ K-01 Serf suffers critical hit (Burn). 01395_ K-01 Serf destroyed. 01395_ Critical hit (Destroy). 01395_ Aluminum Leg destroyed. 01396_ Acquired Aluminum Leg. 01398_ Lgt. Assault Rifle destroyed. 01403_ K-01 Serf collects debris. 01403_ R-06 Scavenger inserts Corrupted Particle Gun into recycling unit. 01406_ R-06 Scavenger inserts Com. Wheel into recycling unit. 01409_ Acquired EM Pulse Gun. Map ----- +----------------------------------------------------+ | ?????????# #?# "???" | | ?????????# # ! #?# "??"" | | ?????????# ## #?# """" | | ????????## # ! % ### | | ????????# [##+#### ##""###### | | ????????+ % [ %* | | ????????# % % ### | | ????????# *##########"#+###?? | | ########## ## ### #??? | | # # ### #?# #??? | | # # #?# #?# "??? | | # # #?# #?##T#??? | | # #! ########+##???##??? | | # +[ = #???????? | | # # % + ???? | | # ![[ ## ### %""" # ???? | | # ![[ ## #?# =""" #???????? | | # [[[ ## #?# """ #???????? | | ###########+### #???????? | | ????# ! # #???????? | | ????# + """ #???????? | | ??### Y # """ #???????? | | ??#"" """ """ # """ #???????? | | ??#"T """ """ + ??????? | | ??#"" """ """ # ?????? | | ??### @ Y ########### ????? | | ????# #???????????????? | | ????###"Y"### #???????????????? | | ??????#"""#?###???????????????? | | ??????#####???????????????????? | | ??????????????????????????????? | | ??????????????????????????????? | | ??????????????????????????????? | | ??????????????????????????????? | | ??????????????????????????????? | | ??????????????????????????????? | | ??????????????????????????????? | | ??????????????????????????????? | | ??????????????????????????????? | | ??????????????????????????????? | | ??????????????????????????????? | | ??????????????????????????????? | | ??????????????????????????????? | | ??????????????????????????????? | | ??????????????????????????????? | | ??????????????????????????????? | | ??????????????????????????????? | | ??????????????????????????????? | | ??????????????????????????????? | | ??????????????????????????????? | +----------------------------------------------------+ Best States ------------- Heat Dissipation 42 Energy Generation 12 Energy Capacity 265 Matter Stores 300 Matter Capacity 300 Sight Range 16 Terrain Scan Density 85 Evasion (%) 55 Recoil Reduction 2 Item Schematics ----------------- None Robot Schematics ------------------ None Fabricated ------------ Nothing Alien Tech Used ----------------- None Achievements -------------- None Challenges ------------ None Game ------ Seed ShadingGatlingNanoactuators Manual? 0 Play Time 00:14:33 Cumulative 9.2 hours Start 2024.05.19 @ 14:54:55 End 2024.05.19 @ 15:07:42 Sessions 1 Manual Loads 0 Difficulty Rogue Special Mode None Game No. 15 Rogue 15 Adventurer 0 Explorer 0 Win Type - Total 0 Types 0/0/0/0/0/0/0/0/0 Lore% 13 Gallery% 22 Achievement% 14 Wizard Run 0 Options --------- Layout 1 ASCII 0 Keyboard 0 Movement Mouse Keybinds 0 Fullscreen 1 Font 24/Smallcaps Map View 50x35 Zoom Use 0% Tactical HUD 1 Map Filters NONE Filters NONE Steam 1 RUN: c17b689f-a456-41a4-9597-c73f6ea027a3